fUSD/lending_fUSD_20260115
["ID","MTS","AMOUNT","RATE_DAILY","PERIOD"]
[402086453,1768515046022,-445.52294582,0.00035616,10]
[402086454,1768515046031,-500.0,0.00035616,10]
[402086455,1768515046042,-362.44249151,0.00035616,10]
[402086456,1768515046051,-500.0,0.00035616,10]
[402086457,1768515046061,-500.0,0.00035616,10]
[402086458,1768515046072,-500.0,0.00035616,10]
[402086459,1768515046082,-500.0,0.00035616,10]
[402086460,1768515046091,-500.0,0.00035616,10]
[402086461,1768515046100,-500.0,0.00035616,10]
[402086462,1768515046110,-500.0,0.00035616,10]
[402086463,1768515046120,-500.0,0.00035616,10]
[402086464,1768515046130,-519.73883126,0.00035616,10]
[402086465,1768515046139,-162.38312941,0.00035616,10]
[402086466,1768515046150,-500.0,0.00035616,10]
[402086467,1768515046159,-500.0,0.00035616,10]
[402086468,1768515046169,-772.24,0.00035616,10]
[402086469,1768515046178,-1398.98,0.00035616,10]
[402086470,1768515046187,-500.0,0.00035616,5]
[402086471,1768515046197,-500.0,0.00035616,10]
[402086472,1768515046206,-500.0,0.00035616,10]
[402086473,1768515046215,-500.0,0.00035616,10]
[402086474,1768515046225,-500.0,0.00035616,10]
[402086475,1768515046235,-245.33966535,0.00035616,10]
[402086476,1768515046244,-1108.23,0.00035616,10]
[402086477,1768515046254,-587.01,0.00035616,10]
[402086478,1768515046263,-500.0,0.00035616,10]
[402086479,1768515046273,-500.0,0.00035616,10]
[402086480,1768515046282,-500.0,0.00035616,10]
[402086481,1768515046292,-500.0,0.00035616,10]
[402086482,1768515046302,-730.41,0.00035616,10]
[402086483,1768515046311,-500.0,0.00035616,10]
[402086484,1768515046321,-523.95377193,0.00035616,10]
[402086485,1768515046330,-783.22,0.00035616,10]
[402086486,1768515046339,-500.0,0.00035616,10]
[402086487,1768515046349,-500.0,0.00035616,10]
[402086488,1768515046358,-484.90924296,0.00035616,10]
[402086489,1768515046368,-808.14,0.00035616,10]
[402086490,1768515046378,-500.0,0.00035616,10]
[402086491,1768515046387,-500.0,0.00035616,10]
[402086492,1768515046397,-1305.97,0.00035616,10]
[402086493,1768515046407,-723.59,0.00035616,10]
[402086494,1768515046417,-1335.47,0.00035616,10]
[402086495,1768515046427,-1032.93,0.00035616,10]
[402086496,1768515046438,-500.0,0.00035616,10]
[402086497,1768515046449,-500.0,0.00035616,10]
[402086498,1768515046459,-500.0,0.00035616,10]
[402086499,1768515046470,-500.0,0.00035616,10]
[402086500,1768515046480,-834.91,0.00035616,10]
[402086501,1768515046489,-500.0,0.00035616,10]
[402086502,1768515046499,-947.66,0.00035616,10]
[402086503,1768515046511,-500.0,0.00035616,10]
[402086504,1768515046521,-1991.06,0.00035616,10]
[402086505,1768515046531,-418.00673391,0.00035616,10]
[402086506,1768515046540,-500.0,0.00035616,10]
[402086507,1768515046550,-500.0,0.00035616,10]
[402086508,1768515046560,-500.0,0.00035616,10]
[402086509,1768515046570,-500.0,0.00035616,10]
[402086510,1768515046579,-500.0,0.00035616,10]
[402086511,1768515046592,-500.0,0.00035616,10]
[402086512,1768515046601,-581.31662996,0.00035616,10]
[402086513,1768515046611,-520.99164076,0.00035616,10]
[402086514,1768515046621,-500.0,0.00035616,10]
[402086515,1768515046631,-500.0,0.00035616,10]
[402086516,1768515046641,-500.0,0.00035616,10]
[402086517,1768515046651,-304.84161417,0.00035616,10]
[402086518,1768515046661,-500.0,0.00035616,10]
[402086519,1768515046672,-500.0,0.00035616,10]
[402086520,1768515046682,-500.0,0.00035616,10]
[402086521,1768515046691,-783.81,0.00035616,10]
[402086522,1768515046701,-589.78100739,0.00035616,10]
[402086523,1768515046711,-500.0,0.00035616,10]
[402086524,1768515046720,-500.0,0.00035616,10]
[402086525,1768515046730,-500.0,0.00035616,10]
[402086526,1768515046739,-500.0,0.00035616,10]
[402086527,1768515046749,-500.0,0.00035616,10]
[402086528,1768515046759,-500.0,0.00035616,10]
[402086529,1768515046768,-649.1,0.00035616,10]
[402086530,1768515046778,-500.0,0.00035616,10]
[402086531,1768515046788,-1376.48,0.00035616,10]
[402086532,1768515046798,-959.63,0.00035616,10]
[402086533,1768515046807,-500.0,0.00035616,10]
[402086534,1768515046816,-201.27608439,0.00035616,10]
[402086535,1768515046826,-756.94,0.00035616,10]
[402086536,1768515046836,-500.0,0.00035616,2]
[402086537,1768515046845,-500.0,0.00035616,10]
[402086538,1768515046855,-500.0,0.00035616,10]
[402086539,1768515046865,-947.61,0.00035616,10]
[402086540,1768515046875,-500.0,0.00035616,10]
[402086541,1768515046885,-500.0,0.00035616,10]
[402086542,1768515046895,-500.0,0.00035616,10]
[402086543,1768515046905,-459.29064536,0.00035616,10]
[402086544,1768515046917,-500.0,0.00035616,10]
[402086545,1768515046927,-699.43,0.00035616,10]
[402086546,1768515046937,-500.0,0.00035616,10]
[402086547,1768515046947,-500.0,0.00035616,10]
[402086548,1768515046957,-1126.01,0.00035616,10]
[402086549,1768515046966,-581.51,0.00035616,10]
[402086550,1768515046976,-500.0,0.00035616,10]
[402086551,1768515046986,-500.0,0.00035616,10]
[402086552,1768515046999,-500.0,0.00035616,10]
[402086553,1768515047008,-696.2,0.00035616,10]
[402086554,1768515047018,-846.05,0.00035616,10]
[402086555,1768515047028,-500.0,0.00035616,10]
[402086556,1768515047039,-820.76,0.00035616,10]
[402086557,1768515047049,-500.0,0.00035616,10]
[402086558,1768515047059,-500.0,0.00035616,10]
[402086559,1768515047071,-226.49429499,0.00035616,10]
[402086560,1768515047081,-638.28,0.00035616,10]
[402086561,1768515047091,-500.0,0.00035616,10]
[402086562,1768515047100,-687.15,0.00035616,10]
[402086563,1768515047110,-1445.35,0.00035616,10]
[402086564,1768515047120,-500.0,0.00035616,10]
[402086565,1768515047139,-500.0,0.00035616,10]
[402086566,1768515047152,-1072.02,0.00035616,10]
[402086567,1768515047162,-500.0,0.00035616,10]
[402086568,1768515047172,-289.56768058,0.00035616,10]
[402086569,1768515047182,-704.07,0.00035616,10]
[402086570,1768515047192,-500.0,0.00035616,10]
[402086571,1768515047202,-500.0,0.00035616,10]
[402086572,1768515047212,-500.0,0.00035616,10]
[402086573,1768515047222,-500.0,0.00035616,10]
[402086574,1768515047232,-500.0,0.00035616,10]
[402086575,1768515047242,-733.03,0.00035616,10]
[402086576,1768515047251,-500.0,0.00035616,10]
[402086577,1768515047261,-500.0,0.00035616,10]
[402086578,1768515047271,-500.0,0.00035616,10]
[402086579,1768515047281,-500.0,0.00035616,10]
[402086580,1768515047290,-500.0,0.00035616,10]
[402086581,1768515047300,-500.0,0.00035616,10]
[402086582,1768515047310,-500.0,0.00035616,10]
[402086583,1768515047320,-500.0,0.00035616,10]
[402086584,1768515047329,-500.0,0.00035616,10]
[402086585,1768515047339,-567.79400386,0.00035616,10]
[402086586,1768515047348,-563.25,0.00035616,10]
[402086587,1768515047358,-500.0,0.00035616,10]
[402086588,1768515047367,-500.0,0.00035616,10]
[402086589,1768515047377,-500.0,0.00035616,10]
[402086590,1768515047387,-500.0,0.00035616,10]
[402086591,1768515047396,-1456.97,0.00035616,10]
[402086592,1768515047406,-500.0,0.00035616,10]
[402086593,1768515047416,-500.0,0.00035616,10]
[402086594,1768515047426,-67.6368638,0.00035616,2]
[402086595,1768515049132,-1.7e-07,0.00016438,2]
[402086596,1768515049146,-499.99999983,0.00016438,2]
[402086597,1768515049156,-500.0,0.00016438,2]
[402086598,1768515049166,-421.76578302,0.00032,60]
[402086599,1768515049185,-78.23421698,0.00032,60]
[402086600,1768515049194,-648.69425671,0.00032055,60]
[402086601,1768515049204,-500.0,0.00032055,60]
[402086602,1768515049213,-150.0,0.0003211,60]
[402086603,1768515049224,-932.3631362,0.00035616,2]
[402086604,1768515049233,-500.0,0.00035616,10]
[402086605,1768515049244,-469.88624323,0.00035616,10]
[402086606,1768515049253,-750.5,0.00035616,10]
[402086607,1768515049263,-436.17307418,0.00035616,10]
[402086608,1768515049272,-1404.97,0.00035616,10]
[402086609,1768515049281,-556.03,0.00035616,10]
[402086610,1768515049290,-500.0,0.00035616,10]
[402086611,1768515049302,-500.0,0.00035616,10]
[402086612,1768515049315,-500.0,0.00035616,10]
[402086613,1768515049325,-500.0,0.00035616,10]
[402086614,1768515049335,-500.0,0.00035616,10]
[402086615,1768515049344,-23.29675409,0.00035616,10]
[402086616,1768515049356,-476.70324591,0.00035616,10]
[402086617,1768515049365,-500.0,0.00035616,10]
[402086618,1768515049374,-500.0,0.00035616,10]
[402086619,1768515049383,-500.0,0.00035616,10]
[402086620,1768515049393,-718.93475409,0.00035616,10]
[402086621,1768515049424,-500.0,0.00016438,2]
[402086622,1768515049433,-279.11524591,0.00035616,10]
[402086623,1768515049442,-500.0,0.00035616,10]
[402086624,1768515049451,-500.0,0.00035616,10]
[402086625,1768515049462,-2038.37,0.00035616,10]
[402086626,1768515049472,-238.858399,0.00035616,10]
[402086627,1768515049482,-890.3,0.00035616,10]
[402086628,1768515049493,-500.0,0.00035616,10]
[402086629,1768515049504,-505.46075951,0.00035616,10]
[402086630,1768515049514,-500.0,0.00035616,10]
[402086631,1768515049523,-500.0,0.00035616,10]
[402086632,1768515049533,-500.0,0.00035616,10]
[402086633,1768515049542,-567.18,0.00035616,10]
[402086634,1768515049551,-760.03,0.00035616,10]
[402086635,1768515049560,-668.62,0.00035616,10]
[402086636,1768515049570,-500.0,0.00035616,10]
[402086637,1768515049579,-500.0,0.00035616,10]
[402086638,1768515049588,-557.15,0.00035616,10]
[402086639,1768515049598,-500.0,0.00035616,10]
[402086640,1768515049607,-500.0,0.00035616,10]
[402086641,1768515049616,-500.0,0.00035616,10]
[402086642,1768515049626,-500.0,0.00035616,10]
[402086643,1768515049637,-725.15,0.00035616,10]
[402086644,1768515049647,-865.07,0.00035616,10]
[402086645,1768515049658,-500.0,0.00035616,10]
[402086646,1768515049667,-890.84,0.00035616,10]
[402086647,1768515049676,-807.71,0.00035616,10]
[402086648,1768515049685,-500.0,0.00035616,10]
[402086649,1768515049695,-950.15,0.00035616,10]
[402086650,1768515049704,-838.0,0.00035616,10]
[402086651,1768515049713,-543.33184567,0.00035616,10]
[402086652,1768515049723,-500.0,0.00035616,10]
[402086653,1768515049732,-526.13,0.00035616,10]
[402086654,1768515049741,-500.0,0.00035616,10]
[402086655,1768515049750,-500.0,0.00035616,10]
[402086656,1768515049759,-500.0,0.00035616,10]
[402086657,1768515049767,-500.0,0.00035616,10]
[402086658,1768515049776,-1100.76,0.00035616,10]
[402086659,1768515049785,-500.0,0.00035616,10]
[402086660,1768515049794,-500.0,0.00035616,10]
[402086661,1768515049803,-500.0,0.00035616,10]
[402086662,1768515049812,-500.0,0.00035616,10]
[402086663,1768515049821,-500.0,0.00035616,10]
[402086664,1768515049831,-517.97,0.00035616,10]
[402086665,1768515049840,-500.0,0.00035616,10]
[402086666,1768515049849,-500.0,0.00035616,10]
[402086667,1768515049858,-640.45,0.00035616,10]
[402086668,1768515049868,-500.0,0.00035616,10]
[402086669,1768515049879,-500.0,0.00035616,10]
[402086670,1768515049888,-1422.69,0.00035616,10]
[402086671,1768515049899,-500.0,0.00035616,10]
[402086672,1768515049910,-585.92,0.00035616,10]
[402086673,1768515049919,-400.0,0.00035616,10]
[402086674,1768515049928,-500.0,0.00035616,10]
[402086675,1768515049937,-500.0,0.00035616,10]
[402086676,1768515049946,-500.0,0.00035616,10]
[402086677,1768515049955,-500.0,0.00035616,10]
[402086678,1768515049965,-1082.32,0.00035616,10]
[402086679,1768515049974,-229.46323967,0.00035616,10]
[402086680,1768515050032,-270.53676033,0.00035616,10]
[402086681,1768515050041,-713.8,0.00035616,10]
[402086682,1768515050051,-219.80417208,0.00035616,10]
[402086683,1768515050063,-280.19582792,0.00035616,10]
[402086684,1768515050075,-513.14,0.00035616,10]
[402086685,1768515050086,-473.83127415,0.00035616,10]
[402086686,1768515050097,-401.05920853,0.00035616,10]
[402086687,1768515050125,-98.94079147,0.00035616,10]
[402086688,1768515050135,-832.64,0.00035616,10]
[402086689,1768515050143,-533.97542719,0.00035616,10]
[402086690,1768515050153,-500.0,0.00035616,10]
[402086691,1768515050161,-500.0,0.00035616,10]
[402086692,1768515050170,-500.0,0.00035616,10]
[402086693,1768515050180,-471.2917172,0.00035616,10]
[402086694,1768515050189,-500.0,0.00035616,10]
[402086695,1768515050198,-500.0,0.00035616,10]
[402086696,1768515050209,-500.0,0.00035616,10]
[402086697,1768515050219,-419.42226088,0.00035616,10]
[402086698,1768515050229,-500.0,0.00035616,10]
[402086699,1768515050239,-500.0,0.00035616,10]
[402086700,1768515050249,-410.61247741,0.00035616,10]
[402086701,1768515050259,-500.0,0.00035616,10]
[402086702,1768515050269,-500.0,0.00035616,10]
[402086703,1768515050279,-500.0,0.00035616,10]
[402086704,1768515050288,-685.8,0.00035616,10]
[402086705,1768515050298,-500.0,0.00035616,10]
[402086706,1768515050307,-486.05163812,0.00035616,10]
[402086707,1768515050316,-527.29927378,0.00035616,10]
[402086708,1768515050326,-500.0,0.00035616,10]
[402086709,1768515050335,-500.0,0.00035616,10]
[402086710,1768515050344,-500.0,0.00035616,10]
[402086711,1768515050353,-500.0,0.00035616,10]
[402086712,1768515050363,-500.0,0.00035616,10]
[402086713,1768515050372,-500.0,0.00035616,10]
[402086714,1768515050381,-500.0,0.00035616,10]
[402086715,1768515050390,-588.06,0.00035616,10]
[402086716,1768515050399,-500.0,0.00035616,10]
[402086717,1768515050409,-500.0,0.00035616,10]
[402086718,1768515050419,-1136.4,0.00035616,10]
[402086719,1768515050428,-500.0,0.00035616,10]
[402086720,1768515050437,-500.0,0.00035616,10]
[402086721,1768515050447,-1009.59,0.00035616,10]
[402086722,1768515050456,-500.0,0.00035616,10]
[402086723,1768515050465,-500.0,0.00035616,10]
[402086724,1768515050475,-500.0,0.00035616,10]
[402086725,1768515050484,-500.0,0.00035616,10]
[402086726,1768515050493,-500.0,0.00035616,10]
[402086727,1768515050502,-309.19130484,0.00035616,10]
[402086728,1768515050511,-598.87,0.00035616,10]
[402086729,1768515050521,-500.0,0.00035616,10]
[402086730,1768515050530,-570.52954411,0.00035616,10]
[402086731,1768515050539,-500.0,0.00035616,10]
[402086732,1768515050548,-500.0,0.00035616,10]
[402086733,1768515050557,-500.0,0.00035616,10]
[402086734,1768515050566,-500.0,0.00035616,10]
[402086735,1768515050576,-558.30205555,0.00035616,10]
[402086736,1768515050585,-203.60988597,0.00035616,10]
[402086737,1768515050594,-500.0,0.00035616,10]
[402086738,1768515050604,-500.0,0.00035616,10]
[402086739,1768515050613,-823.78,0.00035616,10]
[402086740,1768515050622,-1100.07,0.00035616,10]
[402086741,1768515050631,-543.27,0.00035616,10]
[402086742,1768515050640,-415.29239669,0.00035616,10]
[402086743,1768515050650,-500.0,0.00035616,10]
[402086744,1768515050659,-1339.16,0.00035616,10]
[402086745,1768515050668,-500.0,0.00035616,10]
[402086746,1768515050677,-500.0,0.00035616,10]
[402086747,1768515050686,-500.0,0.00035616,10]
[402086748,1768515050695,-500.0,0.00035616,10]
[402086749,1768515050704,-1506.84,0.00035616,10]
[402086750,1768515050713,-500.0,0.00035616,10]
[402086751,1768515050723,-500.0,0.00035616,10]
[402086752,1768515050732,-500.0,0.00035616,10]
[402086753,1768515050741,-500.0,0.00035616,10]
[402086754,1768515050751,-520.108656,0.00035616,10]
[402086755,1768515050761,-761.86,0.00035616,10]
[402086756,1768515050769,-500.0,0.00035616,10]
[402086757,1768515050778,-500.0,0.00035616,10]
[402086758,1768515050787,-1030.73,0.00035616,10]
[402086759,1768515050796,-500.0,0.00035616,10]
[402086760,1768515050805,-534.84,0.00035616,10]
[402086761,1768515050814,-500.0,0.00035616,10]
[402086762,1768515050823,-500.0,0.00035616,10]
[402086763,1768515050832,-500.0,0.00035616,120]
[402086764,1768515050841,-500.0,0.00035616,10]
[402086765,1768515050851,-500.0,0.00035616,10]
[402086766,1768515050862,-500.0,0.00035616,10]
[402086767,1768515050872,-500.0,0.00035616,10]
[402086768,1768515050881,-500.0,0.00035616,10]
[402086769,1768515050891,-500.0,0.00035616,10]
[402086770,1768515050902,-527.04,0.00035616,10]
[402086771,1768515050911,-942.44,0.00035616,10]
[402086772,1768515050920,-568.68224518,0.00035616,10]
[402086773,1768515050929,-500.0,0.00035616,10]
[402086774,1768515050938,-1585.11,0.00035616,10]
[402086775,1768515050947,-743.41,0.00035616,10]
[402086776,1768515050956,-500.0,0.00035616,10]
[402086777,1768515050965,-541.26,0.00035616,10]
[402086778,1768515050975,-532.08190793,0.00035616,10]
[402086779,1768515050987,-515.13838637,0.00035616,10]
[402086780,1768515050999,-500.0,0.00035616,10]
[402086781,1768515051011,-573.88,0.00035616,10]
[402086782,1768515051021,-500.0,0.00035616,10]
[402086783,1768515051030,-612.76782254,0.00035616,10]
[402086784,1768515051042,-778.51,0.00035616,10]
[402086785,1768515051051,-943.81,0.00035616,10]
[402086786,1768515051060,-500.0,0.00035616,10]
[402086787,1768515051072,-500.0,0.00035616,10]
[402086788,1768515051082,-654.29,0.00035616,10]
[402086789,1768515051093,-731.91,0.00035616,10]
[402086790,1768515051104,-1715.61,0.00035616,10]
[402086791,1768515051114,-500.0,0.00035616,10]
[402086792,1768515051124,-406.12399864,0.00035616,10]
[402086793,1768515051134,-500.0,0.00035616,10]
[402086794,1768515051143,-500.0,0.00035616,10]
[402086795,1768515051151,-709.53,0.00035616,10]
[402086796,1768515051160,-545.81,0.00035616,10]
[402086797,1768515051170,-500.0,0.00035616,10]
[402086798,1768515051179,-500.0,0.00035616,10]
[402086799,1768515051188,-500.0,0.00035616,10]
[402086800,1768515051198,-500.0,0.00035616,10]
[402086801,1768515051207,-500.0,0.00035616,10]
[402086802,1768515051216,-1257.27,0.00035616,10]
[402086803,1768515051226,-500.0,0.00035616,10]
[402086804,1768515051236,-517.36496543,0.00035616,10]
[402086805,1768515051245,-1060.76,0.00035616,10]
[402086806,1768515051254,-500.0,0.00035616,10]
[402086807,1768515051264,-500.0,0.00035616,10]
[402086808,1768515051273,-500.0,0.00035616,10]
[402086809,1768515051283,-772.25,0.00035616,10]
[402086810,1768515051293,-772.25,0.00035616,10]
[402086811,1768515051302,-772.25,0.00035616,10]
[402086812,1768515051311,-500.0,0.00035616,10]
[402086813,1768515051323,-772.25,0.00035616,10]
[402086814,1768515051332,-772.25,0.00035616,10]
[402086815,1768515051342,-945.82,0.00035616,10]
[402086816,1768515051351,-500.0,0.00035616,10]
[402086817,1768515051361,-772.25,0.00035616,10]
[402086818,1768515051370,-772.25,0.00035616,10]
[402086819,1768515051380,-772.25,0.00035616,10]
[402086820,1768515051389,-772.25,0.00035616,10]
[402086821,1768515051399,-500.0,0.00035616,10]
[402086822,1768515051408,-772.25,0.00035616,10]
[402086823,1768515051417,-500.0,0.00035616,10]
[402086824,1768515051427,-772.25,0.00035616,10]
[402086825,1768515051436,-772.25,0.00035616,10]
[402086826,1768515051446,-772.25,0.00035616,10]
[402086827,1768515051455,-772.25,0.00035616,10]
[402086828,1768515051466,-600.7060571,0.00035616,10]
[402086829,1768515051475,-772.25,0.00035616,10]
[402086830,1768515051485,-772.25,0.00035616,10]
[402086831,1768515051495,-772.25,0.00035616,10]
[402086832,1768515051504,-772.25,0.00035616,10]
[402086833,1768515051514,-1081.0,0.00035616,10]
[402086834,1768515051524,-500.0,0.00035616,10]
[402086835,1768515051533,-772.25,0.00035616,10]
[402086836,1768515051543,-500.0,0.00035616,10]
[402086837,1768515051553,-772.25,0.00035616,10]
[402086838,1768515051563,-772.25,0.00035616,10]
[402086839,1768515051573,-772.25,0.00035616,10]
[402086840,1768515051583,-772.25,0.00035616,10]
[402086841,1768515051592,-262.71107418,0.00035616,10]
[402086842,1768515051602,-772.34421457,0.00035616,10]
[402086843,1768515051612,-1973.9,0.00035616,10]
[402086844,1768515051621,-538.99,0.00035616,10]
[402086845,1768515051630,-500.0,0.00035616,10]
[402086846,1768515051640,-518.40947982,0.00035616,10]
[402086847,1768515051651,-500.0,0.00035616,10]
[402086848,1768515051660,-500.0,0.00035616,10]
[402086849,1768515051669,-1261.36,0.00035616,10]
[402086850,1768515051678,-500.0,0.00035616,10]
[402086851,1768515051686,-582.11,0.00035616,10]
[402086852,1768515051696,-607.28753863,0.00035616,10]
[402086853,1768515051705,-500.0,0.00035616,10]
[402086854,1768515051715,-942.89,0.00035616,10]
[402086855,1768515051724,-500.0,0.00035616,10]
[402086856,1768515051733,-500.0,0.00035616,10]
[402086857,1768515051743,-500.0,0.00035616,10]
[402086858,1768515051753,-500.0,0.00035616,10]
[402086859,1768515051762,-564.7,0.00035616,10]
[402086860,1768515051771,-500.0,0.00035616,10]
[402086861,1768515051780,-514.52188066,0.00035616,10]
[402086862,1768515051790,-500.0,0.00035616,10]
[402086863,1768515051800,-987.42,0.00035616,10]
[402086864,1768515051811,-563.96,0.00035616,10]
[402086865,1768515051820,-1750.03,0.00035616,10]
[402086866,1768515051831,-817.85,0.00035616,10]
[402086867,1768515051840,-537.49,0.00035616,10]
[402086868,1768515051849,-500.0,0.00035616,10]
[402086869,1768515051859,-1237.13,0.00035616,2]
[402086870,1768515051868,-500.0,0.00035616,10]
[402086871,1768515051879,-552.29,0.00035616,10]
[402086872,1768515051890,-1270.63,0.00035616,10]
[402086873,1768515051900,-500.0,0.00035616,10]
[402086874,1768515051909,-500.0,0.00035616,10]
[402086875,1768515051918,-968.82,0.00035616,10]
[402086876,1768515051929,-500.0,0.00035616,10]
[402086877,1768515051938,-500.0,0.00035616,10]
[402086878,1768515051947,-500.0,0.00035616,10]
[402086879,1768515051957,-664.74,0.00035616,10]
[402086880,1768515051966,-500.0,0.00035616,10]
[402086881,1768515051976,-598.55,0.00035616,10]
[402086882,1768515051985,-500.0,0.00035616,10]
[402086883,1768515051996,-500.0,0.00035616,10]
[402086884,1768515052009,-695.47,0.00035616,10]
[402086885,1768515052019,-500.0,0.00035616,10]
[402086886,1768515052028,-1000.0,0.00035616,10]
[402086887,1768515052039,-632.3,0.00035616,10]
[402086888,1768515052049,-582.01975109,0.00035616,10]
[402086889,1768515052058,-500.0,0.00035616,10]
[402086890,1768515052286,-930.23,0.00035616,10]
[402086891,1768515052296,-500.0,0.00035616,30]
[402086892,1768515052306,-500.0,0.00035616,10]
[402086893,1768515052315,-500.0,0.00035616,10]
[402086894,1768515052324,-500.0,0.00035616,10]
[402086895,1768515052334,-622.36972283,0.00035616,10]
[402086896,1768515052343,-500.0,0.00035616,10]
[402086897,1768515052353,-983.17,0.00035616,10]
[402086898,1768515052362,-1339.49,0.00035616,10]
[402086899,1768515052372,-500.0,0.00035616,10]
[402086900,1768515052381,-1377.27,0.00035616,10]
[402086901,1768515052390,-1461.43,0.00035616,10]
[402086902,1768515052400,-500.0,0.00035616,10]
[402086903,1768515052409,-164.98835842,0.00035616,10]
[402086904,1768515052419,-500.0,0.00035616,10]
[402086905,1768515052428,-500.0,0.00035616,10]
[402086906,1768515052438,-500.0,0.00035616,10]
[402086907,1768515052447,-500.0,0.00035616,10]
[402086908,1768515052457,-548.13,0.00035616,10]
[402086909,1768515052467,-682.59,0.00035616,10]
[402086910,1768515052477,-500.0,0.00035616,10]
[402086911,1768515052486,-500.0,0.00035616,10]
[402086912,1768515052495,-598.47,0.00035616,10]
[402086913,1768515052505,-500.0,0.00035616,10]
[402086914,1768515052515,-500.0,0.00035616,10]
[402086915,1768515052524,-500.0,0.00035616,10]
[402086916,1768515052533,-500.0,0.00035616,10]
[402086917,1768515052543,-500.0,0.00035616,10]
[402086918,1768515052553,-500.0,0.00035616,10]
[402086919,1768515052563,-500.0,0.00035616,10]
[402086920,1768515052574,-500.0,0.00035616,10]
[402086921,1768515052583,-500.0,0.00035616,10]
[402086922,1768515052592,-500.0,0.00035616,10]
[402086923,1768515052603,-500.0,0.00035616,10]
[402086924,1768515052612,-500.0,0.00035616,10]
[402086925,1768515052622,-1129.27,0.00035616,10]
[402086926,1768515052632,-500.0,0.00035616,10]
[402086927,1768515052642,-500.0,0.00035616,10]
[402086928,1768515052653,-500.0,0.00035616,10]
[402086929,1768515052662,-460.86873492,0.00035616,10]
[402086930,1768515052672,-957.96,0.00035616,10]
[402086931,1768515052682,-500.0,0.00035616,10]
[402086932,1768515052692,-500.0,0.00035616,10]
[402086933,1768515052701,-503.12,0.00035616,10]
[402086934,1768515052710,-500.0,0.00035616,10]
[402086935,1768515052719,-1007.72,0.00035616,10]
[402086936,1768515052729,-500.0,0.00035616,10]
[402086937,1768515052739,-702.58,0.00035616,10]
[402086938,1768515052748,-500.0,0.00035616,10]
[402086939,1768515052759,-739.97,0.00035616,10]
[402086940,1768515052769,-717.74,0.00035616,10]
[402086941,1768515052778,-500.0,0.00035616,10]
[402086942,1768515052788,-569.00454395,0.00035616,10]
[402086943,1768515052798,-608.01,0.00035616,10]
[402086944,1768515052807,-915.18,0.00035616,10]
[402086945,1768515052818,-500.0,0.00035616,10]
[402086946,1768515052828,-500.0,0.00035616,10]
[402086947,1768515052837,-500.0,0.00035616,10]
[402086948,1768515052847,-417.58877075,0.00035616,10]
[402086949,1768515052856,-501.74,0.00035616,10]
[402086950,1768515052866,-695.88,0.00035616,10]
[402086951,1768515052876,-500.0,0.00035616,10]
[402086952,1768515052885,-509.6231991,0.00035616,10]